Workbook

Sheet 1
B2: January | J2: 2013 | O2: Sunday
B3: Calendar Month | J3: Calendar Year | O3: First Day of Week
B5: =INDEX(calendar,,1) -> 41273 | G5: =INDEX(calendar,,2) -> 41274 | L5: =INDEX(calendar,,3) -> 41275 | Q5: =INDEX(calendar,,4) -> 41276 | V5: =INDEX(calendar,,5) -> 41277 | AA5: =INDEX(calendar,,6) -> 41278 | AF5: =INDEX(calendar,,7) -> 41279
C6: =INDEX(calendar,ndx+0,1) -> 2012-12-30 | H6: =INDEX(calendar,ndx+0,2) -> 2012-12-31 | M6: =INDEX(calendar,ndx+0,3) -> 2013-01-01 | R6: =INDEX(calendar,ndx+0,4) -> 2013-01-02 | W6: =INDEX(calendar,ndx+0,5) -> 2013-01-03 | AB6: =INDEX(calendar,ndx+0,6) -> 2013-01-04 | AG6: =INDEX(calendar,ndx+0,7) -> 2013-01-05
C8: =INDEX(calendar,ndx+1,1) -> 2013-01-06 | H8: =INDEX(calendar,ndx+1,2) -> 2013-01-07 | M8: =INDEX(calendar,ndx+1,3) -> 2013-01-08 | R8: =INDEX(calendar,ndx+1,4) -> 2013-01-09 | W8: =INDEX(calendar,ndx+1,5) -> 2013-01-10 | AB8: =INDEX(calendar,ndx+1,6) -> 2013-01-11 | AG8: =INDEX(calendar,ndx+1,7) -> 2013-01-12
C10: =INDEX(calendar,ndx+2,1) -> 2013-01-13 | H10: =INDEX(calendar,ndx+2,2) -> 2013-01-14 | M10: =INDEX(calendar,ndx+2,3) -> 2013-01-15 | R10: =INDEX(calendar,ndx+2,4) -> 2013-01-16 | W10: =INDEX(calendar,ndx+2,5) -> 2013-01-17 | AB10: =INDEX(calendar,ndx+2,6) -> 2013-01-18 | AG10: =INDEX(calendar,ndx+2,7) -> 2013-01-19
C12: =INDEX(calendar,ndx+3,1) -> 2013-01-20 | H12: =INDEX(calendar,ndx+3,2) -> 2013-01-21 | M12: =INDEX(calendar,ndx+3,3) -> 2013-01-22 | R12: =INDEX(calendar,ndx+3,4) -> 2013-01-23 | W12: =INDEX(calendar,ndx+3,5) -> 2013-01-24 | AB12: =INDEX(calendar,ndx+3,6) -> 2013-01-25 | AG12: =INDEX(calendar,ndx+3,7) -> 2013-01-26
C14: =INDEX(calendar,ndx+4,1) -> 2013-01-27 | H14: =INDEX(calendar,ndx+4,2) -> 2013-01-28 | M14: =INDEX(calendar,ndx+4,3) -> 2013-01-29 | R14: =INDEX(calendar,ndx+4,4) -> 2013-01-30 | W14: =INDEX(calendar,ndx+4,5) -> 2013-01-31 | AB14: =INDEX(calendar,ndx+4,6) -> 2013-02-01 | AG14: =INDEX(calendar,ndx+4,7) -> 2013-02-02
C16: =INDEX(calendar,ndx+5,1) -> 2013-02-03 | H16: =INDEX(calendar,ndx+5,2) -> 2013-02-04 | M16: =INDEX(calendar,ndx+5,3) -> 2013-02-05 | R16: =INDEX(calendar,ndx+5,4) -> 2013-02-06 | W16: =INDEX(calendar,ndx+5,5) -> 2013-02-07 | AB16: =INDEX(calendar,ndx+5,6) -> 2013-02-08 | AG16: =INDEX(calendar,ndx+5,7) -> 2013-02-09
C18: Notes

Sheet 2
B2: =TEXT(EOMONTH('1'!$C$10,0)+1,"mmmm") -> February | J2: =YEAR(EOMONTH('1'!$C$10,0)+1) -> 2013 | O2: =DayToStart -> Sunday
B3: Calendar Month | J3: Calendar Year | O3: First Day of Week
B5: =INDEX(calendar,,1) -> 41301 | G5: =INDEX(calendar,,2) -> 41302 | L5: =INDEX(calendar,,3) -> 41303 | Q5: =INDEX(calendar,,4) -> 41304 | V5: =INDEX(calendar,,5) -> 41305 | AA5: =INDEX(calendar,,6) -> 41306 | AF5: =INDEX(calendar,,7) -> 41307
C6: =INDEX(calendar,ndx+0,1) -> 2013-01-27 | H6: =INDEX(calendar,ndx+0,2) -> 2013-01-28 | M6: =INDEX(calendar,ndx+0,3) -> 2013-01-29 | R6: =INDEX(calendar,ndx+0,4) -> 2013-01-30 | W6: =INDEX(calendar,ndx+0,5) -> 2013-01-31 | AB6: =INDEX(calendar,ndx+0,6) -> 2013-02-01 | AG6: =INDEX(calendar,ndx+0,7) -> 2013-02-02
C8: =INDEX(calendar,ndx+1,1) -> 2013-02-03 | H8: =INDEX(calendar,ndx+1,2) -> 2013-02-04 | M8: =INDEX(calendar,ndx+1,3) -> 2013-02-05 | R8: =INDEX(calendar,ndx+1,4) -> 2013-02-06 | W8: =INDEX(calendar,ndx+1,5) -> 2013-02-07 | AB8: =INDEX(calendar,ndx+1,6) -> 2013-02-08 | AG8: =INDEX(calendar,ndx+1,7) -> 2013-02-09
C10: =INDEX(calendar,ndx+2,1) -> 2013-02-10 | H10: =INDEX(calendar,ndx+2,2) -> 2013-02-11 | M10: =INDEX(calendar,ndx+2,3) -> 2013-02-12 | R10: =INDEX(calendar,ndx+2,4) -> 2013-02-13 | W10: =INDEX(calendar,ndx+2,5) -> 2013-02-14 | AB10: =INDEX(calendar,ndx+2,6) -> 2013-02-15 | AG10: =INDEX(calendar,ndx+2,7) -> 2013-02-16
C12: =INDEX(calendar,ndx+3,1) -> 2013-02-17 | H12: =INDEX(calendar,ndx+3,2) -> 2013-02-18 | M12: =INDEX(calendar,ndx+3,3) -> 2013-02-19 | R12: =INDEX(calendar,ndx+3,4) -> 2013-02-20 | W12: =INDEX(calendar,ndx+3,5) -> 2013-02-21 | AB12: =INDEX(calendar,ndx+3,6) -> 2013-02-22 | AG12: =INDEX(calendar,ndx+3,7) -> 2013-02-23
C14: =INDEX(calendar,ndx+4,1) -> 2013-02-24 | H14: =INDEX(calendar,ndx+4,2) -> 2013-02-25 | M14: =INDEX(calendar,ndx+4,3) -> 2013-02-26 | R14: =INDEX(calendar,ndx+4,4) -> 2013-02-27 | W14: =INDEX(calendar,ndx+4,5) -> 2013-02-28 | AB14: =INDEX(calendar,ndx+4,6) -> 2013-03-01 | AG14: =INDEX(calendar,ndx+4,7) -> 2013-03-02
C16: =INDEX(calendar,ndx+5,1) -> 2013-03-03 | H16: =INDEX(calendar,ndx+5,2) -> 2013-03-04 | M16: =INDEX(calendar,ndx+5,3) -> 2013-03-05 | R16: =INDEX(calendar,ndx+5,4) -> 2013-03-06 | W16: =INDEX(calendar,ndx+5,5) -> 2013-03-07 | AB16: =INDEX(calendar,ndx+5,6) -> 2013-03-08 | AG16: =INDEX(calendar,ndx+5,7) -> 2013-03-09
C18: Notes

Sheet 3
B2: =TEXT(EOMONTH('2'!$C$10,0)+1,"mmmm") -> March | J2: =YEAR(EOMONTH('2'!$C$10,0)+1) -> 2013 | O2: =DayToStart -> Sunday
B3: Calendar Month | J3: Calendar Year | O3: First Day of Week
B5: =INDEX(calendar,,1) -> 41329 | G5: =INDEX(calendar,,2) -> 41330 | L5: =INDEX(calendar,,3) -> 41331 | Q5: =INDEX(calendar,,4) -> 41332 | V5: =INDEX(calendar,,5) -> 41333 | AA5: =INDEX(calendar,,6) -> 41334 | AF5: =INDEX(calendar,,7) -> 41335
C6: =INDEX(calendar,ndx+0,1) -> 2013-02-24 | H6: =INDEX(calendar,ndx+0,2) -> 2013-02-25 | M6: =INDEX(calendar,ndx+0,3) -> 2013-02-26 | R6: =INDEX(calendar,ndx+0,4) -> 2013-02-27 | W6: =INDEX(calendar,ndx+0,5) -> 2013-02-28 | AB6: =INDEX(calendar,ndx+0,6) -> 2013-03-01 | AG6: =INDEX(calendar,ndx+0,7) -> 2013-03-02
C8: =INDEX(calendar,ndx+1,1) -> 2013-03-03 | H8: =INDEX(calendar,ndx+1,2) -> 2013-03-04 | M8: =INDEX(calendar,ndx+1,3) -> 2013-03-05 | R8: =INDEX(calendar,ndx+1,4) -> 2013-03-06 | W8: =INDEX(calendar,ndx+1,5) -> 2013-03-07 | AB8: =INDEX(calendar,ndx+1,6) -> 2013-03-08 | AG8: =INDEX(calendar,ndx+1,7) -> 2013-03-09
C10: =INDEX(calendar,ndx+2,1) -> 2013-03-10 | H10: =INDEX(calendar,ndx+2,2) -> 2013-03-11 | M10: =INDEX(calendar,ndx+2,3) -> 2013-03-12 | R10: =INDEX(calendar,ndx+2,4) -> 2013-03-13 | W10: =INDEX(calendar,ndx+2,5) -> 2013-03-14 | AB10: =INDEX(calendar,ndx+2,6) -> 2013-03-15 | AG10: =INDEX(calendar,ndx+2,7) -> 2013-03-16
C12: =INDEX(calendar,ndx+3,1) -> 2013-03-17 | H12: =INDEX(calendar,ndx+3,2) -> 2013-03-18 | M12: =INDEX(calendar,ndx+3,3) -> 2013-03-19 | R12: =INDEX(calendar,ndx+3,4) -> 2013-03-20 | W12: =INDEX(calendar,ndx+3,5) -> 2013-03-21 | AB12: =INDEX(calendar,ndx+3,6) -> 2013-03-22 | AG12: =INDEX(calendar,ndx+3,7) -> 2013-03-23
C14: =INDEX(calendar,ndx+4,1) -> 2013-03-24 | H14: =INDEX(calendar,ndx+4,2) -> 2013-03-25 | M14: =INDEX(calendar,ndx+4,3) -> 2013-03-26 | R14: =INDEX(calendar,ndx+4,4) -> 2013-03-27 | W14: =INDEX(calendar,ndx+4,5) -> 2013-03-28 | AB14: =INDEX(calendar,ndx+4,6) -> 2013-03-29 | AG14: =INDEX(calendar,ndx+4,7) -> 2013-03-30
C16: =INDEX(calendar,ndx+5,1) -> 2013-03-31 | H16: =INDEX(calendar,ndx+5,2) -> 2013-04-01 | M16: =INDEX(calendar,ndx+5,3) -> 2013-04-02 | R16: =INDEX(calendar,ndx+5,4) -> 2013-04-03 | W16: =INDEX(calendar,ndx+5,5) -> 2013-04-04 | AB16: =INDEX(calendar,ndx+5,6) -> 2013-04-05 | AG16: =INDEX(calendar,ndx+5,7) -> 2013-04-06
C18: Notes

Sheet 4
B2: =TEXT(EOMONTH('3'!$C$10,0)+1,"mmmm") -> April | J2: =YEAR(EOMONTH('3'!$C$10,0)+1) -> 2013 | O2: =DayToStart -> Sunday
B3: Calendar Month | J3: Calendar Year | O3: First Day of Week
B5: =INDEX(calendar,,1) -> 41364 | G5: =INDEX(calendar,,2) -> 41365 | L5: =INDEX(calendar,,3) -> 41366 | Q5: =INDEX(calendar,,4) -> 41367 | V5: =INDEX(calendar,,5) -> 41368 | AA5: =INDEX(calendar,,6) -> 41369 | AF5: =INDEX(calendar,,7) -> 41370
C6: =INDEX(calendar,ndx+0,1) -> 2013-03-31 | H6: =INDEX(calendar,ndx+0,2) -> 2013-04-01 | M6: =INDEX(calendar,ndx+0,3) -> 2013-04-02 | R6: =INDEX(calendar,ndx+0,4) -> 2013-04-03 | W6: =INDEX(calendar,ndx+0,5) -> 2013-04-04 | AB6: =INDEX(calendar,ndx+0,6) -> 2013-04-05 | AG6: =INDEX(calendar,ndx+0,7) -> 2013-04-06
C8: =INDEX(calendar,ndx+1,1) -> 2013-04-07 | H8: =INDEX(calendar,ndx+1,2) -> 2013-04-08 | M8: =INDEX(calendar,ndx+1,3) -> 2013-04-09 | R8: =INDEX(calendar,ndx+1,4) -> 2013-04-10 | W8: =INDEX(calendar,ndx+1,5) -> 2013-04-11 | AB8: =INDEX(calendar,ndx+1,6) -> 2013-04-12 | AG8: =INDEX(calendar,ndx+1,7) -> 2013-04-13
C10: =INDEX(calendar,ndx+2,1) -> 2013-04-14 | H10: =INDEX(calendar,ndx+2,2) -> 2013-04-15 | M10: =INDEX(calendar,ndx+2,3) -> 2013-04-16 | R10: =INDEX(calendar,ndx+2,4) -> 2013-04-17 | W10: =INDEX(calendar,ndx+2,5) -> 2013-04-18 | AB10: =INDEX(calendar,ndx+2,6) -> 2013-04-19 | AG10: =INDEX(calendar,ndx+2,7) -> 2013-04-20
C12: =INDEX(calendar,ndx+3,1) -> 2013-04-21 | H12: =INDEX(calendar,ndx+3,2) -> 2013-04-22 | M12: =INDEX(calendar,ndx+3,3) -> 2013-04-23 | R12: =INDEX(calendar,ndx+3,4) -> 2013-04-24 | W12: =INDEX(calendar,ndx+3,5) -> 2013-04-25 | AB12: =INDEX(calendar,ndx+3,6) -> 2013-04-26 | AG12: =INDEX(calendar,ndx+3,7) -> 2013-04-27
C14: =INDEX(calendar,ndx+4,1) -> 2013-04-28 | H14: =INDEX(calendar,ndx+4,2) -> 2013-04-29 | M14: =INDEX(calendar,ndx+4,3) -> 2013-04-30 | R14: =INDEX(calendar,ndx+4,4) -> 2013-05-01 | W14: =INDEX(calendar,ndx+4,5) -> 2013-05-02 | AB14: =INDEX(calendar,ndx+4,6) -> 2013-05-03 | AG14: =INDEX(calendar,ndx+4,7) -> 2013-05-04
C16: =INDEX(calendar,ndx+5,1) -> 2013-05-05 | H16: =INDEX(calendar,ndx+5,2) -> 2013-05-06 | M16: =INDEX(calendar,ndx+5,3) -> 2013-05-07 | R16: =INDEX(calendar,ndx+5,4) -> 2013-05-08 | W16: =INDEX(calendar,ndx+5,5) -> 2013-05-09 | AB16: =INDEX(calendar,ndx+5,6) -> 2013-05-10 | AG16: =INDEX(calendar,ndx+5,7) -> 2013-05-11
C18: Notes

Sheet 5
B2: =TEXT(EOMONTH('4'!$C$10,0)+1,"mmmm") -> May | J2: =YEAR(EOMONTH('4'!$C$10,0)+1) -> 2013 | O2: =DayToStart -> Sunday
B3: Calendar Month | J3: Calendar Year | O3: First Day of Week
B5: =INDEX(calendar,,1) -> 41392 | G5: =INDEX(calendar,,2) -> 41393 | L5: =INDEX(calendar,,3) -> 41394 | Q5: =INDEX(calendar,,4) -> 41395 | V5: =INDEX(calendar,,5) -> 41396 | AA5: =INDEX(calendar,,6) -> 41397 | AF5: =INDEX(calendar,,7) -> 41398
C6: =INDEX(calendar,ndx+0,1) -> 2013-04-28 | H6: =INDEX(calendar,ndx+0,2) -> 2013-04-29 | M6: =INDEX(calendar,ndx+0,3) -> 2013-04-30 | R6: =INDEX(calendar,ndx+0,4) -> 2013-05-01 | W6: =INDEX(calendar,ndx+0,5) -> 2013-05-02 | AB6: =INDEX(calendar,ndx+0,6) -> 2013-05-03 | AG6: =INDEX(calendar,ndx+0,7) -> 2013-05-04
C8: =INDEX(calendar,ndx+1,1) -> 2013-05-05 | H8: =INDEX(calendar,ndx+1,2) -> 2013-05-06 | M8: =INDEX(calendar,ndx+1,3) -> 2013-05-07 | R8: =INDEX(calendar,ndx+1,4) -> 2013-05-08 | W8: =INDEX(calendar,ndx+1,5) -> 2013-05-09 | AB8: =INDEX(calendar,ndx+1,6) -> 2013-05-10 | AG8: =INDEX(calendar,ndx+1,7) -> 2013-05-11
C10: =INDEX(calendar,ndx+2,1) -> 2013-05-12 | H10: =INDEX(calendar,ndx+2,2) -> 2013-05-13 | M10: =INDEX(calendar,ndx+2,3) -> 2013-05-14 | R10: =INDEX(calendar,ndx+2,4) -> 2013-05-15 | W10: =INDEX(calendar,ndx+2,5) -> 2013-05-16 | AB10: =INDEX(calendar,ndx+2,6) -> 2013-05-17 | AG10: =INDEX(calendar,ndx+2,7) -> 2013-05-18
C12: =INDEX(calendar,ndx+3,1) -> 2013-05-19 | H12: =INDEX(calendar,ndx+3,2) -> 2013-05-20 | M12: =INDEX(calendar,ndx+3,3) -> 2013-05-21 | R12: =INDEX(calendar,ndx+3,4) -> 2013-05-22 | W12: =INDEX(calendar,ndx+3,5) -> 2013-05-23 | AB12: =INDEX(calendar,ndx+3,6) -> 2013-05-24 | AG12: =INDEX(calendar,ndx+3,7) -> 2013-05-25
C14: =INDEX(calendar,ndx+4,1) -> 2013-05-26 | H14: =INDEX(calendar,ndx+4,2) -> 2013-05-27 | M14: =INDEX(calendar,ndx+4,3) -> 2013-05-28 | R14: =INDEX(calendar,ndx+4,4) -> 2013-05-29 | W14: =INDEX(calendar,ndx+4,5) -> 2013-05-30 | AB14: =INDEX(calendar,ndx+4,6) -> 2013-05-31 | AG14: =INDEX(calendar,ndx+4,7) -> 2013-06-01
C16: =INDEX(calendar,ndx+5,1) -> 2013-06-02 | H16: =INDEX(calendar,ndx+5,2) -> 2013-06-03 | M16: =INDEX(calendar,ndx+5,3) -> 2013-06-04 | R16: =INDEX(calendar,ndx+5,4) -> 2013-06-05 | W16: =INDEX(calendar,ndx+5,5) -> 2013-06-06 | AB16: =INDEX(calendar,ndx+5,6) -> 2013-06-07 | AG16: =INDEX(calendar,ndx+5,7) -> 2013-06-08
C18: Notes

Sheet 6
B2: =TEXT(EOMONTH('5'!$C$10,0)+1,"mmmm") -> June | J2: =YEAR(EOMONTH('5'!$C$10,0)+1) -> 2013 | O2: =DayToStart -> Sunday
B3: Calendar Month | J3: Calendar Year | O3: First Day of Week
B5: =INDEX(calendar,,1) -> 41420 | G5: =INDEX(calendar,,2) -> 41421 | L5: =INDEX(calendar,,3) -> 41422 | Q5: =INDEX(calendar,,4) -> 41423 | V5: =INDEX(calendar,,5) -> 41424 | AA5: =INDEX(calendar,,6) -> 41425 | AF5: =INDEX(calendar,,7) -> 41426
C6: =INDEX(calendar,ndx+0,1) -> 2013-05-26 | H6: =INDEX(calendar,ndx+0,2) -> 2013-05-27 | M6: =INDEX(calendar,ndx+0,3) -> 2013-05-28 | R6: =INDEX(calendar,ndx+0,4) -> 2013-05-29 | W6: =INDEX(calendar,ndx+0,5) -> 2013-05-30 | AB6: =INDEX(calendar,ndx+0,6) -> 2013-05-31 | AG6: =INDEX(calendar,ndx+0,7) -> 2013-06-01
C8: =INDEX(calendar,ndx+1,1) -> 2013-06-02 | H8: =INDEX(calendar,ndx+1,2) -> 2013-06-03 | M8: =INDEX(calendar,ndx+1,3) -> 2013-06-04 | R8: =INDEX(calendar,ndx+1,4) -> 2013-06-05 | W8: =INDEX(calendar,ndx+1,5) -> 2013-06-06 | AB8: =INDEX(calendar,ndx+1,6) -> 2013-06-07 | AG8: =INDEX(calendar,ndx+1,7) -> 2013-06-08
C10: =INDEX(calendar,ndx+2,1) -> 2013-06-09 | H10: =INDEX(calendar,ndx+2,2) -> 2013-06-10 | M10: =INDEX(calendar,ndx+2,3) -> 2013-06-11 | R10: =INDEX(calendar,ndx+2,4) -> 2013-06-12 | W10: =INDEX(calendar,ndx+2,5) -> 2013-06-13 | AB10: =INDEX(calendar,ndx+2,6) -> 2013-06-14 | AG10: =INDEX(calendar,ndx+2,7) -> 2013-06-15
C12: =INDEX(calendar,ndx+3,1) -> 2013-06-16 | H12: =INDEX(calendar,ndx+3,2) -> 2013-06-17 | M12: =INDEX(calendar,ndx+3,3) -> 2013-06-18 | R12: =INDEX(calendar,ndx+3,4) -> 2013-06-19 | W12: =INDEX(calendar,ndx+3,5) -> 2013-06-20 | AB12: =INDEX(calendar,ndx+3,6) -> 2013-06-21 | AG12: =INDEX(calendar,ndx+3,7) -> 2013-06-22
C14: =INDEX(calendar,ndx+4,1) -> 2013-06-23 | H14: =INDEX(calendar,ndx+4,2) -> 2013-06-24 | M14: =INDEX(calendar,ndx+4,3) -> 2013-06-25 | R14: =INDEX(calendar,ndx+4,4) -> 2013-06-26 | W14: =INDEX(calendar,ndx+4,5) -> 2013-06-27 | AB14: =INDEX(calendar,ndx+4,6) -> 2013-06-28 | AG14: =INDEX(calendar,ndx+4,7) -> 2013-06-29
C16: =INDEX(calendar,ndx+5,1) -> 2013-06-30 | H16: =INDEX(calendar,ndx+5,2) -> 2013-07-01 | M16: =INDEX(calendar,ndx+5,3) -> 2013-07-02 | R16: =INDEX(calendar,ndx+5,4) -> 2013-07-03 | W16: =INDEX(calendar,ndx+5,5) -> 2013-07-04 | AB16: =INDEX(calendar,ndx+5,6) -> 2013-07-05 | AG16: =INDEX(calendar,ndx+5,7) -> 2013-07-06
C18: Notes

Sheet 7
B2: =TEXT(EOMONTH('6'!$C$10,0)+1,"mmmm") -> July | J2: =YEAR(EOMONTH('6'!$C$10,0)+1) -> 2013 | O2: =DayToStart -> Sunday
B3: Calendar Month | J3: Calendar Year | O3: First Day of Week
B5: =INDEX(calendar,,1) -> 41455 | G5: =INDEX(calendar,,2) -> 41456 | L5: =INDEX(calendar,,3) -> 41457 | Q5: =INDEX(calendar,,4) -> 41458 | V5: =INDEX(calendar,,5) -> 41459 | AA5: =INDEX(calendar,,6) -> 41460 | AF5: =INDEX(calendar,,7) -> 41461
C6: =INDEX(calendar,ndx+0,1) -> 2013-06-30 | H6: =INDEX(calendar,ndx+0,2) -> 2013-07-01 | M6: =INDEX(calendar,ndx+0,3) -> 2013-07-02 | R6: =INDEX(calendar,ndx+0,4) -> 2013-07-03 | W6: =INDEX(calendar,ndx+0,5) -> 2013-07-04 | AB6: =INDEX(calendar,ndx+0,6) -> 2013-07-05 | AG6: =INDEX(calendar,ndx+0,7) -> 2013-07-06
C8: =INDEX(calendar,ndx+1,1) -> 2013-07-07 | H8: =INDEX(calendar,ndx+1,2) -> 2013-07-08 | M8: =INDEX(calendar,ndx+1,3) -> 2013-07-09 | R8: =INDEX(calendar,ndx+1,4) -> 2013-07-10 | W8: =INDEX(calendar,ndx+1,5) -> 2013-07-11 | AB8: =INDEX(calendar,ndx+1,6) -> 2013-07-12 | AG8: =INDEX(calendar,ndx+1,7) -> 2013-07-13
C10: =INDEX(calendar,ndx+2,1) -> 2013-07-14 | H10: =INDEX(calendar,ndx+2,2) -> 2013-07-15 | M10: =INDEX(calendar,ndx+2,3) -> 2013-07-16 | R10: =INDEX(calendar,ndx+2,4) -> 2013-07-17 | W10: =INDEX(calendar,ndx+2,5) -> 2013-07-18 | AB10: =INDEX(calendar,ndx+2,6) -> 2013-07-19 | AG10: =INDEX(calendar,ndx+2,7) -> 2013-07-20
C12: =INDEX(calendar,ndx+3,1) -> 2013-07-21 | H12: =INDEX(calendar,ndx+3,2) -> 2013-07-22 | M12: =INDEX(calendar,ndx+3,3) -> 2013-07-23 | R12: =INDEX(calendar,ndx+3,4) -> 2013-07-24 | W12: =INDEX(calendar,ndx+3,5) -> 2013-07-25 | AB12: =INDEX(calendar,ndx+3,6) -> 2013-07-26 | AG12: =INDEX(calendar,ndx+3,7) -> 2013-07-27
C14: =INDEX(calendar,ndx+4,1) -> 2013-07-28 | H14: =INDEX(calendar,ndx+4,2) -> 2013-07-29 | M14: =INDEX(calendar,ndx+4,3) -> 2013-07-30 | R14: =INDEX(calendar,ndx+4,4) -> 2013-07-31 | W14: =INDEX(calendar,ndx+4,5) -> 2013-08-01 | AB14: =INDEX(calendar,ndx+4,6) -> 2013-08-02 | AG14: =INDEX(calendar,ndx+4,7) -> 2013-08-03
C16: =INDEX(calendar,ndx+5,1) -> 2013-08-04 | H16: =INDEX(calendar,ndx+5,2) -> 2013-08-05 | M16: =INDEX(calendar,ndx+5,3) -> 2013-08-06 | R16: =INDEX(calendar,ndx+5,4) -> 2013-08-07 | W16: =INDEX(calendar,ndx+5,5) -> 2013-08-08 | AB16: =INDEX(calendar,ndx+5,6) -> 2013-08-09 | AG16: =INDEX(calendar,ndx+5,7) -> 2013-08-10
C18: Notes

Sheet 8
B2: =TEXT(EOMONTH('7'!$C$10,0)+1,"mmmm") -> August | J2: =YEAR(EOMONTH('7'!$C$10,0)+1) -> 2013 | O2: =DayToStart -> Sunday
B3: Calendar Month | J3: Calendar Year | O3: First Day of Week
B5: =INDEX(calendar,,1) -> 41483 | G5: =INDEX(calendar,,2) -> 41484 | L5: =INDEX(calendar,,3) -> 41485 | Q5: =INDEX(calendar,,4) -> 41486 | V5: =INDEX(calendar,,5) -> 41487 | AA5: =INDEX(calendar,,6) -> 41488 | AF5: =INDEX(calendar,,7) -> 41489
C6: =INDEX(calendar,ndx+0,1) -> 2013-07-28 | H6: =INDEX(calendar,ndx+0,2) -> 2013-07-29 | M6: =INDEX(calendar,ndx+0,3) -> 2013-07-30 | R6: =INDEX(calendar,ndx+0,4) -> 2013-07-31 | W6: =INDEX(calendar,ndx+0,5) -> 2013-08-01 | AB6: =INDEX(calendar,ndx+0,6) -> 2013-08-02 | AG6: =INDEX(calendar,ndx+0,7) -> 2013-08-03
C8: =INDEX(calendar,ndx+1,1) -> 2013-08-04 | H8: =INDEX(calendar,ndx+1,2) -> 2013-08-05 | M8: =INDEX(calendar,ndx+1,3) -> 2013-08-06 | R8: =INDEX(calendar,ndx+1,4) -> 2013-08-07 | W8: =INDEX(calendar,ndx+1,5) -> 2013-08-08 | AB8: =INDEX(calendar,ndx+1,6) -> 2013-08-09 | AG8: =INDEX(calendar,ndx+1,7) -> 2013-08-10
C10: =INDEX(calendar,ndx+2,1) -> 2013-08-11 | H10: =INDEX(calendar,ndx+2,2) -> 2013-08-12 | M10: =INDEX(calendar,ndx+2,3) -> 2013-08-13 | R10: =INDEX(calendar,ndx+2,4) -> 2013-08-14 | W10: =INDEX(calendar,ndx+2,5) -> 2013-08-15 | AB10: =INDEX(calendar,ndx+2,6) -> 2013-08-16 | AG10: =INDEX(calendar,ndx+2,7) -> 2013-08-17
C12: =INDEX(calendar,ndx+3,1) -> 2013-08-18 | H12: =INDEX(calendar,ndx+3,2) -> 2013-08-19 | M12: =INDEX(calendar,ndx+3,3) -> 2013-08-20 | R12: =INDEX(calendar,ndx+3,4) -> 2013-08-21 | W12: =INDEX(calendar,ndx+3,5) -> 2013-08-22 | AB12: =INDEX(calendar,ndx+3,6) -> 2013-08-23 | AG12: =INDEX(calendar,ndx+3,7) -> 2013-08-24
C14: =INDEX(calendar,ndx+4,1) -> 2013-08-25 | H14: =INDEX(calendar,ndx+4,2) -> 2013-08-26 | M14: =INDEX(calendar,ndx+4,3) -> 2013-08-27 | R14: =INDEX(calendar,ndx+4,4) -> 2013-08-28 | W14: =INDEX(calendar,ndx+4,5) -> 2013-08-29 | AB14: =INDEX(calendar,ndx+4,6) -> 2013-08-30 | AG14: =INDEX(calendar,ndx+4,7) -> 2013-08-31
C16: =INDEX(calendar,ndx+5,1) -> 2013-09-01 | H16: =INDEX(calendar,ndx+5,2) -> 2013-09-02 | M16: =INDEX(calendar,ndx+5,3) -> 2013-09-03 | R16: =INDEX(calendar,ndx+5,4) -> 2013-09-04 | W16: =INDEX(calendar,ndx+5,5) -> 2013-09-05 | AB16: =INDEX(calendar,ndx+5,6) -> 2013-09-06 | AG16: =INDEX(calendar,ndx+5,7) -> 2013-09-07
C18: Notes

Sheet 9
B2: =TEXT(EOMONTH('8'!$C$10,0)+1,"mmmm") -> September | J2: =YEAR(EOMONTH('8'!$C$10,0)+1) -> 2013 | O2: =DayToStart -> Sunday
B3: Calendar Month | J3: Calendar Year | O3: First Day of Week
B5: =INDEX(calendar,,1) -> 41518 | G5: =INDEX(calendar,,2) -> 41519 | L5: =INDEX(calendar,,3) -> 41520 | Q5: =INDEX(calendar,,4) -> 41521 | V5: =INDEX(calendar,,5) -> 41522 | AA5: =INDEX(calendar,,6) -> 41523 | AF5: =INDEX(calendar,,7) -> 41524
C6: =INDEX(calendar,ndx+0,1) -> 2013-09-01 | H6: =INDEX(calendar,ndx+0,2) -> 2013-09-02 | M6: =INDEX(calendar,ndx+0,3) -> 2013-09-03 | R6: =INDEX(calendar,ndx+0,4) -> 2013-09-04 | W6: =INDEX(calendar,ndx+0,5) -> 2013-09-05 | AB6: =INDEX(calendar,ndx+0,6) -> 2013-09-06 | AG6: =INDEX(calendar,ndx+0,7) -> 2013-09-07
C8: =INDEX(calendar,ndx+1,1) -> 2013-09-08 | H8: =INDEX(calendar,ndx+1,2) -> 2013-09-09 | M8: =INDEX(calendar,ndx+1,3) -> 2013-09-10 | R8: =INDEX(calendar,ndx+1,4) -> 2013-09-11 | W8: =INDEX(calendar,ndx+1,5) -> 2013-09-12 | AB8: =INDEX(calendar,ndx+1,6) -> 2013-09-13 | AG8: =INDEX(calendar,ndx+1,7) -> 2013-09-14
C10: =INDEX(calendar,ndx+2,1) -> 2013-09-15 | H10: =INDEX(calendar,ndx+2,2) -> 2013-09-16 | M10: =INDEX(calendar,ndx+2,3) -> 2013-09-17 | R10: =INDEX(calendar,ndx+2,4) -> 2013-09-18 | W10: =INDEX(calendar,ndx+2,5) -> 2013-09-19 | AB10: =INDEX(calendar,ndx+2,6) -> 2013-09-20 | AG10: =INDEX(calendar,ndx+2,7) -> 2013-09-21
C12: =INDEX(calendar,ndx+3,1) -> 2013-09-22 | H12: =INDEX(calendar,ndx+3,2) -> 2013-09-23 | M12: =INDEX(calendar,ndx+3,3) -> 2013-09-24 | R12: =INDEX(calendar,ndx+3,4) -> 2013-09-25 | W12: =INDEX(calendar,ndx+3,5) -> 2013-09-26 | AB12: =INDEX(calendar,ndx+3,6) -> 2013-09-27 | AG12: =INDEX(calendar,ndx+3,7) -> 2013-09-28
C14: =INDEX(calendar,ndx+4,1) -> 2013-09-29 | H14: =INDEX(calendar,ndx+4,2) -> 2013-09-30 | M14: =INDEX(calendar,ndx+4,3) -> 2013-10-01 | R14: =INDEX(calendar,ndx+4,4) -> 2013-10-02 | W14: =INDEX(calendar,ndx+4,5) -> 2013-10-03 | AB14: =INDEX(calendar,ndx+4,6) -> 2013-10-04 | AG14: =INDEX(calendar,ndx+4,7) -> 2013-10-05
C16: =INDEX(calendar,ndx+5,1) -> 2013-10-06 | H16: =INDEX(calendar,ndx+5,2) -> 2013-10-07 | M16: =INDEX(calendar,ndx+5,3) -> 2013-10-08 | R16: =INDEX(calendar,ndx+5,4) -> 2013-10-09 | W16: =INDEX(calendar,ndx+5,5) -> 2013-10-10 | AB16: =INDEX(calendar,ndx+5,6) -> 2013-10-11 | AG16: =INDEX(calendar,ndx+5,7) -> 2013-10-12
C18: Notes

Sheet 10
B2: =TEXT(EOMONTH('9'!$C$10,0)+1,"mmmm") -> October | J2: =YEAR(EOMONTH('9'!$C$10,0)+1) -> 2013 | O2: =DayToStart -> Sunday
B3: Calendar Month | J3: Calendar Year | O3: First Day of Week
B5: =INDEX(calendar,,1) -> 41546 | G5: =INDEX(calendar,,2) -> 41547 | L5: =INDEX(calendar,,3) -> 41548 | Q5: =INDEX(calendar,,4) -> 41549 | V5: =INDEX(calendar,,5) -> 41550 | AA5: =INDEX(calendar,,6) -> 41551 | AF5: =INDEX(calendar,,7) -> 41552
C6: =INDEX(calendar,ndx+0,1) -> 2013-09-29 | H6: =INDEX(calendar,ndx+0,2) -> 2013-09-30 | M6: =INDEX(calendar,ndx+0,3) -> 2013-10-01 | R6: =INDEX(calendar,ndx+0,4) -> 2013-10-02 | W6: =INDEX(calendar,ndx+0,5) -> 2013-10-03 | AB6: =INDEX(calendar,ndx+0,6) -> 2013-10-04 | AG6: =INDEX(calendar,ndx+0,7) -> 2013-10-05
C8: =INDEX(calendar,ndx+1,1) -> 2013-10-06 | H8: =INDEX(calendar,ndx+1,2) -> 2013-10-07 | M8: =INDEX(calendar,ndx+1,3) -> 2013-10-08 | R8: =INDEX(calendar,ndx+1,4) -> 2013-10-09 | W8: =INDEX(calendar,ndx+1,5) -> 2013-10-10 | AB8: =INDEX(calendar,ndx+1,6) -> 2013-10-11 | AG8: =INDEX(calendar,ndx+1,7) -> 2013-10-12
C10: =INDEX(calendar,ndx+2,1) -> 2013-10-13 | H10: =INDEX(calendar,ndx+2,2) -> 2013-10-14 | M10: =INDEX(calendar,ndx+2,3) -> 2013-10-15 | R10: =INDEX(calendar,ndx+2,4) -> 2013-10-16 | W10: =INDEX(calendar,ndx+2,5) -> 2013-10-17 | AB10: =INDEX(calendar,ndx+2,6) -> 2013-10-18 | AG10: =INDEX(calendar,ndx+2,7) -> 2013-10-19
C12: =INDEX(calendar,ndx+3,1) -> 2013-10-20 | H12: =INDEX(calendar,ndx+3,2) -> 2013-10-21 | M12: =INDEX(calendar,ndx+3,3) -> 2013-10-22 | R12: =INDEX(calendar,ndx+3,4) -> 2013-10-23 | W12: =INDEX(calendar,ndx+3,5) -> 2013-10-24 | AB12: =INDEX(calendar,ndx+3,6) -> 2013-10-25 | AG12: =INDEX(calendar,ndx+3,7) -> 2013-10-26
C14: =INDEX(calendar,ndx+4,1) -> 2013-10-27 | H14: =INDEX(calendar,ndx+4,2) -> 2013-10-28 | M14: =INDEX(calendar,ndx+4,3) -> 2013-10-29 | R14: =INDEX(calendar,ndx+4,4) -> 2013-10-30 | W14: =INDEX(calendar,ndx+4,5) -> 2013-10-31 | AB14: =INDEX(calendar,ndx+4,6) -> 2013-11-01 | AG14: =INDEX(calendar,ndx+4,7) -> 2013-11-02
C16: =INDEX(calendar,ndx+5,1) -> 2013-11-03 | H16: =INDEX(calendar,ndx+5,2) -> 2013-11-04 | M16: =INDEX(calendar,ndx+5,3) -> 2013-11-05 | R16: =INDEX(calendar,ndx+5,4) -> 2013-11-06 | W16: =INDEX(calendar,ndx+5,5) -> 2013-11-07 | AB16: =INDEX(calendar,ndx+5,6) -> 2013-11-08 | AG16: =INDEX(calendar,ndx+5,7) -> 2013-11-09
C18: Notes

Sheet 11
B2: =TEXT(EOMONTH('10'!$C$10,0)+1,"mmmm") -> November | J2: =YEAR(EOMONTH('10'!$C$10,0)+1) -> 2013 | O2: =DayToStart -> Sunday
B3: Calendar Month | J3: Calendar Year | O3: First Day of Week
B5: =INDEX(calendar,,1) -> 41574 | G5: =INDEX(calendar,,2) -> 41575 | L5: =INDEX(calendar,,3) -> 41576 | Q5: =INDEX(calendar,,4) -> 41577 | V5: =INDEX(calendar,,5) -> 41578 | AA5: =INDEX(calendar,,6) -> 41579 | AF5: =INDEX(calendar,,7) -> 41580
C6: =INDEX(calendar,ndx+0,1) -> 2013-10-27 | H6: =INDEX(calendar,ndx+0,2) -> 2013-10-28 | M6: =INDEX(calendar,ndx+0,3) -> 2013-10-29 | R6: =INDEX(calendar,ndx+0,4) -> 2013-10-30 | W6: =INDEX(calendar,ndx+0,5) -> 2013-10-31 | AB6: =INDEX(calendar,ndx+0,6) -> 2013-11-01 | AG6: =INDEX(calendar,ndx+0,7) -> 2013-11-02
C8: =INDEX(calendar,ndx+1,1) -> 2013-11-03 | H8: =INDEX(calendar,ndx+1,2) -> 2013-11-04 | M8: =INDEX(calendar,ndx+1,3) -> 2013-11-05 | R8: =INDEX(calendar,ndx+1,4) -> 2013-11-06 | W8: =INDEX(calendar,ndx+1,5) -> 2013-11-07 | AB8: =INDEX(calendar,ndx+1,6) -> 2013-11-08 | AG8: =INDEX(calendar,ndx+1,7) -> 2013-11-09
C10: =INDEX(calendar,ndx+2,1) -> 2013-11-10 | H10: =INDEX(calendar,ndx+2,2) -> 2013-11-11 | M10: =INDEX(calendar,ndx+2,3) -> 2013-11-12 | R10: =INDEX(calendar,ndx+2,4) -> 2013-11-13 | W10: =INDEX(calendar,ndx+2,5) -> 2013-11-14 | AB10: =INDEX(calendar,ndx+2,6) -> 2013-11-15 | AG10: =INDEX(calendar,ndx+2,7) -> 2013-11-16
C12: =INDEX(calendar,ndx+3,1) -> 2013-11-17 | H12: =INDEX(calendar,ndx+3,2) -> 2013-11-18 | M12: =INDEX(calendar,ndx+3,3) -> 2013-11-19 | R12: =INDEX(calendar,ndx+3,4) -> 2013-11-20 | W12: =INDEX(calendar,ndx+3,5) -> 2013-11-21 | AB12: =INDEX(calendar,ndx+3,6) -> 2013-11-22 | AG12: =INDEX(calendar,ndx+3,7) -> 2013-11-23
C14: =INDEX(calendar,ndx+4,1) -> 2013-11-24 | H14: =INDEX(calendar,ndx+4,2) -> 2013-11-25 | M14: =INDEX(calendar,ndx+4,3) -> 2013-11-26 | R14: =INDEX(calendar,ndx+4,4) -> 2013-11-27 | W14: =INDEX(calendar,ndx+4,5) -> 2013-11-28 | AB14: =INDEX(calendar,ndx+4,6) -> 2013-11-29 | AG14: =INDEX(calendar,ndx+4,7) -> 2013-11-30
C16: =INDEX(calendar,ndx+5,1) -> 2013-12-01 | H16: =INDEX(calendar,ndx+5,2) -> 2013-12-02 | M16: =INDEX(calendar,ndx+5,3) -> 2013-12-03 | R16: =INDEX(calendar,ndx+5,4) -> 2013-12-04 | W16: =INDEX(calendar,ndx+5,5) -> 2013-12-05 | AB16: =INDEX(calendar,ndx+5,6) -> 2013-12-06 | AG16: =INDEX(calendar,ndx+5,7) -> 2013-12-07
C18: Notes

Sheet 12
B2: =TEXT(EOMONTH('11'!$C$10,0)+1,"mmmm") -> December | J2: =YEAR(EOMONTH('11'!$C$10,0)+1) -> 2013 | O2: =DayToStart -> Sunday
B3: Calendar Month | J3: Calendar Year | O3: First Day of Week
B5: =INDEX(calendar,,1) -> 41609 | G5: =INDEX(calendar,,2) -> 41610 | L5: =INDEX(calendar,,3) -> 41611 | Q5: =INDEX(calendar,,4) -> 41612 | V5: =INDEX(calendar,,5) -> 41613 | AA5: =INDEX(calendar,,6) -> 41614 | AF5: =INDEX(calendar,,7) -> 41615
C6: =INDEX(calendar,ndx+0,1) -> 2013-12-01 | H6: =INDEX(calendar,ndx+0,2) -> 2013-12-02 | M6: =INDEX(calendar,ndx+0,3) -> 2013-12-03 | R6: =INDEX(calendar,ndx+0,4) -> 2013-12-04 | W6: =INDEX(calendar,ndx+0,5) -> 2013-12-05 | AB6: =INDEX(calendar,ndx+0,6) -> 2013-12-06 | AG6: =INDEX(calendar,ndx+0,7) -> 2013-12-07
C8: =INDEX(calendar,ndx+1,1) -> 2013-12-08 | H8: =INDEX(calendar,ndx+1,2) -> 2013-12-09 | M8: =INDEX(calendar,ndx+1,3) -> 2013-12-10 | R8: =INDEX(calendar,ndx+1,4) -> 2013-12-11 | W8: =INDEX(calendar,ndx+1,5) -> 2013-12-12 | AB8: =INDEX(calendar,ndx+1,6) -> 2013-12-13 | AG8: =INDEX(calendar,ndx+1,7) -> 2013-12-14
C10: =INDEX(calendar,ndx+2,1) -> 2013-12-15 | H10: =INDEX(calendar,ndx+2,2) -> 2013-12-16 | M10: =INDEX(calendar,ndx+2,3) -> 2013-12-17 | R10: =INDEX(calendar,ndx+2,4) -> 2013-12-18 | W10: =INDEX(calendar,ndx+2,5) -> 2013-12-19 | AB10: =INDEX(calendar,ndx+2,6) -> 2013-12-20 | AG10: =INDEX(calendar,ndx+2,7) -> 2013-12-21
C12: =INDEX(calendar,ndx+3,1) -> 2013-12-22 | H12: =INDEX(calendar,ndx+3,2) -> 2013-12-23 | M12: =INDEX(calendar,ndx+3,3) -> 2013-12-24 | R12: =INDEX(calendar,ndx+3,4) -> 2013-12-25 | W12: =INDEX(calendar,ndx+3,5) -> 2013-12-26 | AB12: =INDEX(calendar,ndx+3,6) -> 2013-12-27 | AG12: =INDEX(calendar,ndx+3,7) -> 2013-12-28
C14: =INDEX(calendar,ndx+4,1) -> 2013-12-29 | H14: =INDEX(calendar,ndx+4,2) -> 2013-12-30 | M14: =INDEX(calendar,ndx+4,3) -> 2013-12-31 | R14: =INDEX(calendar,ndx+4,4) -> 2014-01-01 | W14: =INDEX(calendar,ndx+4,5) -> 2014-01-02 | AB14: =INDEX(calendar,ndx+4,6) -> 2014-01-03 | AG14: =INDEX(calendar,ndx+4,7) -> 2014-01-04
C16: =INDEX(calendar,ndx+5,1) -> 2014-01-05 | H16: =INDEX(calendar,ndx+5,2) -> 2014-01-06 | M16: =INDEX(calendar,ndx+5,3) -> 2014-01-07 | R16: =INDEX(calendar,ndx+5,4) -> 2014-01-08 | W16: =INDEX(calendar,ndx+5,5) -> 2014-01-09 | AB16: =INDEX(calendar,ndx+5,6) -> 2014-01-10 | AG16: =INDEX(calendar,ndx+5,7) -> 2014-01-11
C18: Notes
